fUSD/lending_fUSD_20251222
["ID","MTS","AMOUNT","RATE_DAILY","PERIOD"]
[399456142,1766369441643,-500.0,0.00016437,2]
[399456143,1766369441652,-967.44191712,0.00016438,2]
[399456144,1766369441663,-967.44191712,0.00016438,2]
[399456145,1766369441671,-967.44191712,0.00016438,2]
[399456146,1766369441681,-967.44191712,0.00016438,2]
[399456147,1766369441690,-967.44191712,0.00016438,2]
[399456148,1766369441699,-967.44191712,0.00016438,2]
[399456149,1766369441707,-967.44191712,0.00016438,2]
[399456150,1766369441716,-967.44191712,0.00016438,2]
[399456151,1766369441725,-967.44191712,0.00016438,2]
[399456152,1766369441734,-967.44191712,0.00016438,2]
[399456153,1766369441744,-967.44191712,0.00016438,2]
[399456154,1766369441754,-967.44191712,0.00016438,2]
[399456155,1766369441763,-967.44191712,0.00016438,2]
[399456156,1766369441772,-967.44191712,0.00016438,2]
[399456157,1766369441781,-967.44191712,0.00016438,2]
[399456158,1766369441790,-967.44191712,0.00016438,2]
[399456159,1766369441799,-967.44191712,0.00016438,2]
[399456160,1766369441809,-967.44191712,0.00016438,2]
[399456161,1766369441818,-967.44191712,0.00016438,2]
[399456162,1766369441827,-967.44191712,0.00016438,2]
[399456163,1766369441836,-967.44191712,0.00016438,2]
[399456164,1766369441846,-967.44191712,0.00016438,2]
[399456165,1766369441856,-967.44191712,0.00016438,2]
[399456166,1766369441866,-967.44191712,0.00016438,2]
[399456167,1766369441876,-967.44191712,0.00016438,2]
[399456168,1766369441886,-967.44191712,0.00016438,2]
[399456169,1766369441895,-967.44191712,0.00016438,2]
[399456170,1766369441904,-967.44191712,0.00016438,2]
[399456171,1766369441916,-967.44191712,0.00016438,2]
[399456172,1766369441925,-967.44191712,0.00016438,2]
[399456173,1766369441935,-967.44191712,0.00016438,2]
[399456174,1766369441945,-967.44191712,0.00016438,2]
[399456175,1766369441954,-967.44191712,0.00016438,2]
[399456176,1766369441964,-967.44191712,0.00016438,2]
[399456177,1766369441973,-967.44191712,0.00016438,2]
[399456178,1766369441982,-967.44191712,0.00016438,2]
[399456179,1766369441991,-967.44191712,0.00016438,2]
[399456180,1766369442000,-967.44191712,0.00016438,2]
[399456181,1766369442010,-967.44191712,0.00016438,2]
[399456182,1766369442019,-967.44191712,0.00016438,2]
[399456183,1766369442028,-967.44191712,0.00016438,2]
[399456184,1766369442038,-967.44191712,0.00016438,2]
[399456185,1766369442047,-967.44191712,0.00016438,2]
[399456186,1766369442056,-967.44191712,0.00016438,2]
[399456187,1766369442065,-967.44191712,0.00016438,2]
[399456188,1766369442075,-967.44191712,0.00016438,2]
[399456189,1766369442084,-967.44191712,0.00016438,2]
[399456190,1766369442094,-967.44191712,0.00016438,2]
[399456191,1766369442103,-967.44191712,0.00016438,2]
[399456192,1766369442113,-967.44191712,0.00016438,2]
[399456193,1766369442123,-967.44191712,0.00016438,2]
[399456194,1766369442132,-967.44191712,0.00016438,2]
[399456195,1766369442142,-967.44191712,0.00016438,2]
[399456196,1766369442155,-967.44191712,0.00016438,2]
[399456197,1766369442166,-967.44191712,0.00016438,2]
[399456198,1766369442175,-967.44191712,0.00016438,2]
[399456199,1766369442185,-949.85206409,0.00016438,2]
[399456200,1766369442195,-949.85206409,0.00016438,2]
[399456201,1766369442205,-949.85206409,0.00016438,2]
[399456202,1766369442217,-949.85206409,0.00016438,2]
[399456203,1766369442227,-949.85206409,0.00016438,2]
[399456204,1766369442238,-949.85206409,0.00016438,2]
[399456205,1766369442247,-949.85206409,0.00016438,2]
[399456206,1766369442256,-949.85206409,0.00016438,2]
[399456207,1766369442266,-949.85206409,0.00016438,2]
[399456208,1766369442275,-949.85206409,0.00016438,2]
[399456209,1766369442284,-949.85206409,0.00016438,2]
[399456210,1766369442295,-949.85206409,0.00016438,2]
[399456211,1766369442306,-949.85206409,0.00016438,2]
[399456212,1766369442316,-949.85206409,0.00016438,2]
[399456213,1766369442325,-949.85206409,0.00016438,2]
[399456214,1766369442335,-949.85206409,0.00016438,2]
[399456215,1766369442344,-949.85206409,0.00016438,2]
[399456216,1766369442353,-949.85206409,0.00016438,2]
[399456217,1766369442362,-949.85206409,0.00016438,2]
[399456218,1766369442371,-949.85206409,0.00016438,2]
[399456219,1766369442381,-949.85206409,0.00016438,2]
[399456220,1766369442391,-949.85206409,0.00016438,2]
[399456221,1766369442401,-949.85206409,0.00016438,2]
[399456222,1766369442411,-949.85206409,0.00016438,2]
[399456223,1766369442421,-949.85206409,0.00016438,2]
[399456224,1766369442430,-949.85206409,0.00016438,2]
[399456225,1766369442439,-949.85206409,0.00016438,2]
[399456226,1766369442448,-949.85206409,0.00016438,2]
[399456227,1766369442458,-949.85206409,0.00016438,2]
[399456228,1766369442467,-949.85206409,0.00016438,2]
[399456229,1766369442476,-949.85206409,0.00016438,2]
[399456230,1766369442485,-949.85206409,0.00016438,2]
[399456231,1766369442494,-30449.25817545,0.00016438,2]
[399456232,1766369442503,-277.18,0.00016438,2]
[399456233,1766369442512,-800.66640866,0.00016438,2]
[399456234,1766369442521,-9587.77,0.00016438,2]
[399456235,1766369442534,-507.17995557,0.00016472,2]
[399456236,1766369442550,-500.23459526,0.00016473,2]
[399456237,1766369442563,-500.89063362,0.00016473,2]
[399456238,1766369442575,-500.92519729,0.00016473,2]
[399456239,1766369442587,-162.4264826,0.00016473,2]
[399456240,1766369442600,-500.71610448,0.00016473,2]
[399456241,1766369442613,-570.44343091,0.00016473,2]
[399456242,1766369442627,-500.59656143,0.00016473,2]
[399456243,1766369442640,-500.25404697,0.00016473,2]
[399456244,1766369442654,-500.14110793,0.00016473,2]
[399456245,1766369442668,-500.4866391,0.00016473,2]
[399456246,1766369442680,-639.90034145,0.00016473,2]
[399456247,1766369442691,-500.93365607,0.00016473,2]
[399456248,1766369442705,-500.364387,0.00016473,2]
[399456249,1766369442718,-500.88851044,0.00016473,2]
[399456250,1766369442731,-500.23431497,0.00016473,2]
[399456251,1766369442747,-500.94017287,0.00016473,2]
[399456252,1766369442760,-500.0,0.00016473,2]
[399456253,1766369442774,-182.65808094,0.00016473,2]
[399456254,1766369442787,-500.40105858,0.00016473,2]
[399456255,1766369442801,-500.0,0.00016473,2]
[399456256,1766369442814,-500.26932841,0.00016473,2]
[399456257,1766369442828,-500.0,0.00016473,2]
[399456258,1766369442840,-500.0,0.00016473,2]
[399456259,1766369442853,-500.23422882,0.00016473,2]
[399456260,1766369442867,-500.0,0.00016473,2]
[399456261,1766369442881,-519.00415051,0.00016473,2]
[399456262,1766369442893,-500.0,0.00016473,2]
[399456263,1766369442906,-500.28027426,0.00016473,2]
[399456264,1766369442916,-500.5380025,0.00016473,2]
[399456265,1766369442927,-500.23816043,0.00016473,2]
[399456266,1766369442939,-150.2134934,0.00016473,2]
[399456267,1766369442954,-160.22953259,0.00016473,2]
[399456269,1766369442965,-160.2285992,0.00016473,2]
[399456271,1766369442975,-160.22953204,0.00016473,2]
[399456273,1766369442985,-160.22398459,0.00016473,2]
[399456275,1766369442996,-500.84177563,0.00016473,2]
[399456277,1766369443010,-500.0,0.00016473,2]
[399456278,1766369443022,-156.58285256,0.00016473,2]
[399456279,1766369443032,-160.23136935,0.00016473,2]
[399456280,1766369443043,-500.53011343,0.00016473,2]
[399456281,1766369443055,-500.84493932,0.00016473,2]
[399456282,1766369443067,-500.63864721,0.00016473,2]
[399456283,1766369443079,-500.0,0.00016473,2]
[399456284,1766369443091,-160.23033873,0.00016473,2]
[399456285,1766369443104,-180.96115395,0.00016473,2]
[399456286,1766369443117,-506.35717119,0.00016473,2]
[399456287,1766369443129,-164.86405043,0.00016473,2]
[399456288,1766369443142,-500.0,0.00016473,2]
[399456289,1766369443159,-500.5955787,0.00016473,2]
[399456290,1766369443172,-500.69670875,0.00016473,2]
[399456291,1766369443184,-500.0,0.00016473,2]
[399456292,1766369443195,-207.53128657,0.00016473,2]
[399456293,1766369443208,-500.0,0.00016473,2]
[399456294,1766369443226,-500.0,0.00016473,2]
[399456295,1766369443238,-500.0,0.00016473,2]
[399456296,1766369443249,-500.89704022,0.00016473,2]
[399456297,1766369443261,-556.12570782,0.00016473,2]
[399456298,1766369443272,-500.0,0.00016473,2]
[399456299,1766369443284,-500.85006285,0.00016473,2]
[399456300,1766369443295,-500.0,0.00016473,2]
[399456301,1766369443307,-500.0,0.00016473,2]
[399456302,1766369443319,-500.0,0.00016473,2]
[399456303,1766369443330,-334.69874754,0.00016473,2]
[399456304,1766369443341,-500.0,0.00016473,2]
[399456305,1766369443354,-500.0,0.00016473,2]
[399456306,1766369443365,-500.0,0.00016473,2]
[399456307,1766369443376,-509.29558158,0.00016473,2]
[399456308,1766369443388,-500.0,0.00016473,2]
[399456309,1766369443400,-500.47037435,0.00016473,2]
[399456310,1766369443413,-500.40899585,0.00016473,2]
[399456311,1766369443425,-566.05199029,0.00016473,2]
[399456312,1766369443437,-500.71273679,0.00016473,2]
[399456313,1766369443448,-530.18655741,0.00016473,2]
[399456314,1766369443460,-499.92308063,0.00016473,2]
[399456315,1766369443472,-500.0,0.00016473,2]
[399456316,1766369443484,-500.19873097,0.00016473,2]
[399456317,1766369443496,-500.0,0.00016473,2]
[399456318,1766369443507,-500.0,0.00016473,2]
[399456319,1766369443519,-500.0,0.00016473,2]
[399456320,1766369443530,-164.27,0.00016712,2]
[399456321,1766369443541,-9035.0,0.00016853,2]
[399456322,1766369443553,-2976.1983083,0.00016898,2]
[399456323,1766369443564,-2976.19830826,0.00016898,2]
[399456324,1766369443575,-2976.19830826,0.00016899,2]
[399456325,1766369443587,-2976.19830826,0.00016899,2]
[399456326,1766369443599,-2976.19830826,0.000169,2]
[399456327,1766369443610,-3729.21,0.000169,2]
[399456328,1766369443622,-10000.0,0.000169,2]
[399456329,1766369443634,-635.18407425,0.000169,2]
[399456330,1766369443645,-31911.13255029,0.000169,2]
[399456331,1766369443657,-256.92797377,0.000169,2]
[399456332,1766369443670,-1518.13760257,0.000169,2]
[399456333,1766369443683,-2976.19830826,0.000169,2]
[399456334,1766369443695,-771.66914966,0.000169,2]
[399456335,1766369443708,-169.11922478,0.000169,2]
[399456336,1766369443720,-3500.0,0.00016931,2]
[399456337,1766369443731,-353.92874992,0.00016931,2]
[399456338,1766369443743,-3507.1328153,0.00016931,2]
[399456339,1766369443754,-1254.80493767,0.00016932,2]
[399456340,1766369443766,-304.0,0.00016959,2]
[399456341,1766369443777,-150.0,0.00016973,2]
[399456342,1766369443789,-150.11026087,0.00016973,2]
[399456343,1766369443800,-500.0,0.00016973,2]
[399456344,1766369443812,-605.42609762,0.00016973,2]
[399456345,1766369443824,-150.0,0.00016973,2]
[399456346,1766369443836,-201.47691223,0.00016977,2]
[399456347,1766369443848,-250.0,0.00016983,2]
[399456348,1766369443859,-151.33984604,0.00016983,2]
[399456349,1766369443871,-2235.14725565,0.0001699,2]
[399456350,1766369443882,-2235.14725565,0.0001699,2]
[399456351,1766369443894,-500.0,0.00016997,2]
[399456352,1766369443906,-501.43777448,0.00016997,2]
[399456353,1766369443921,-500.0,0.00016997,2]
[399456354,1766369443932,-500.0,0.00016997,2]
[399456355,1766369443944,-500.0,0.00016997,2]
[399456356,1766369443955,-500.0,0.00016997,2]
[399456357,1766369443966,-151.0,0.00016997,2]
[399456358,1766369443978,-151.0,0.00016997,2]
[399456359,1766369443990,-151.0,0.00016997,2]
[399456360,1766369444001,-3155.6849583,0.00016998,2]
[399456361,1766369444013,-239848.7837139,0.00016998,2]
[399456362,1766369444025,-4513.3449511,0.00016998,2]
[399456363,1766369444036,-13540.0348533,0.00016998,2]
[399456364,1766369444047,-1164.4873571,0.00016999,5]
[399456365,1766369444059,-500.0,0.00016999,2]
[399456366,1766369444070,-500.0,0.00016999,2]
[399456367,1766369444081,-516.06200881,0.00016999,2]
[399456368,1766369444093,-500.0,0.00016999,2]
[399456369,1766369444104,-500.0,0.00016999,2]
[399456370,1766369444116,-500.0,0.00016999,2]
[399456371,1766369444127,-500.0,0.00016999,2]
[399456372,1766369444139,-436.38149996,0.00016999,2]
[399456373,1766369444153,-177.16375127,0.00016999,2]
[399456374,1766369444164,-300.0,0.00016999,2]
[399456375,1766369444176,-300.0,0.00016999,2]
[399456376,1766369444188,-666.0,0.00016999,2]
[399456377,1766369444199,-300.0,0.00016999,2]
[399456378,1766369444211,-666.0,0.00016999,2]
[399456379,1766369444225,-666.0,0.00016999,2]
[399456380,1766369444237,-300.0,0.00016999,2]
[399456381,1766369444249,-300.0,0.00016999,2]
[399456382,1766369444261,-3013780.09944504,0.00017,2]
[399456383,1766369444282,-431.02168193,0.00017,2]
[399456384,1766369444296,-7264.87864018,0.00017,2]
[399456385,1766369444310,-15990.48014292,0.00017,2]
[399456386,1766369444324,-259.14826833,0.00017,2]
[399456387,1766369444337,-580.47318092,0.00017,2]
[399456388,1766369444351,-1405.12080614,0.00017,2]
[399456389,1766369444445,-653.68413682,0.00014437,2]
[399456390,1766369444459,-642.2986497,0.00014437,2]
[399456391,1766369444474,-2504.84340514,0.00014437,2]
[399456392,1766369444490,-2243.60294719,0.00014437,2]
[399456393,1766369444505,-21742.97887168,0.00014437,2]
[399456394,1766369444516,-151.0,0.00014754,2]
[399456395,1766369444530,-5660.2990383,0.00016955,2]
[399456396,1766369444543,-3143570.5664242,0.00017,2]
[399456397,1766369444555,-2000.0,0.00017,2]
[399456398,1766369444568,-250.0,0.00017,2]
[399456399,1766369444580,-1093.6,0.00017006,2]
[399456400,1766369444593,-1000.0,0.00017021,2]
[399456401,1766369444606,-1000.0,0.00017021,2]
[399456402,1766369444622,-1000.0,0.00017021,2]
[399456403,1766369444635,-1000.0,0.00017021,2]
[399456404,1766369444647,-1000.0,0.00017021,2]
[399456405,1766369444658,-581.27415104,0.00017021,2]
[399456406,1766369444671,-1000.0,0.00017021,2]
[399456407,1766369444683,-356.16077878,0.00017021,2]
[399456408,1766369444695,-757.18076506,0.00017021,2]
[399456409,1766369444707,-1000.0,0.00017021,2]
[399456410,1766369444719,-1000.0,0.00017021,2]
[399456411,1766369444731,-962.50874655,0.00017021,2]
[399456412,1766369444742,-1000.0,0.00017021,2]
[399456413,1766369444755,-1000.0,0.00017021,2]
[399456414,1766369444767,-1000.0,0.00017021,2]
[399456415,1766369444778,-1000.0,0.00017021,2]
[399456416,1766369444790,-1000.0,0.00017021,2]
[399456417,1766369444801,-1000.0,0.00017021,2]
[399456418,1766369444812,-500.87119543,0.00017021,2]
[399456419,1766369444823,-1000.0,0.00017021,2]
[399456420,1766369444835,-1000.0,0.00017021,2]
[399456421,1766369444847,-1002.13430343,0.00017021,2]
[399456422,1766369444858,-1000.0,0.00017021,2]
[399456423,1766369444868,-577.70558009,0.00017021,2]
[399456424,1766369444880,-1000.0,0.00017021,2]
[399456425,1766369444891,-2453.0,0.00017035,2]
[399456426,1766369444902,-1600.0,0.00017385,2]
[399456427,1766369444913,-3736.82314427,0.00017478,2]
[399456428,1766369444925,-232.9120576,0.00017521,2]
[399456429,1766369444937,-1500.0,0.00017568,2]
[399456430,1766369444949,-1311.86809345,0.00017568,2]
[399456431,1766369444962,-1500.0,0.00017568,2]
[399456432,1766369444973,-931.23535355,0.00017568,2]
[399456433,1766369444984,-1500.0,0.00017568,2]
[399456434,1766369444995,-1500.0,0.00017568,2]
[399456435,1766369445007,-1500.0,0.00017568,2]
[399456437,1766369445024,-1500.0,0.00017568,2]
[399456439,1766369445036,-1500.0,0.00017568,2]
[399456442,1766369445049,-1500.0,0.00017568,2]
[399456444,1766369445062,-1176.20718988,0.00017568,2]
[399456446,1766369445076,-1500.0,0.00017568,2]
[399456449,1766369445089,-1500.0,0.00017568,2]
[399456451,1766369445102,-1500.0,0.00017568,2]
[399456453,1766369445115,-1500.0,0.00017568,2]
[399456456,1766369445128,-1500.0,0.00017568,2]
[399456458,1766369445143,-1500.0,0.00017568,2]
[399456460,1766369445156,-1500.0,0.00017568,2]
[399456462,1766369445172,-483.94,0.00017658,2]
[399456500,1766369445186,-150.0,0.00017945,2]
[399456501,1766369445671,-151.0,0.00017997,2]
[399456502,1766369445694,-307.86580758,0.00017999,2]
[399456503,1766369445703,-300.0,0.00017999,2]
[399456504,1766369445713,-671.19063169,0.00017999,2]
[399456505,1766369445722,-300.0,0.00017999,2]
[399456506,1766369445732,-666.0,0.00017999,2]
[399456507,1766369445742,-300.0,0.00017999,2]
[399456508,1766369445751,-178520.97202458,0.00018,2]
[399456509,1766369445761,-42844.01227958,0.00018,2]
[399456510,1766369445770,-1185.66627314,0.00018,2]
[399456511,1766369445779,-1000.0,0.00018019,7]
[399456512,1766369445788,-1000.0,0.00018082,2]
[399456513,1766369445798,-1772.55333379,0.000181,2]
[399456514,1766369445808,-2000.0,0.00018116,2]
[399456516,1766369445818,-1000.0,0.00018116,2]
[399456518,1766369445827,-1004.56928307,0.00018116,2]
[399456520,1766369445835,-2000.0,0.00018116,2]
[399456521,1766369445845,-2000.0,0.00018116,2]
[399456523,1766369445855,-2000.0,0.00018116,2]
[399456525,1766369445865,-580.39649573,0.00018116,2]
[399456527,1766369445883,-717.0059997,0.00018116,2]
[399456529,1766369445892,-1599.70922982,0.00018116,2]
[399456531,1766369445902,-940.5527102,0.00018116,2]
[399456532,1766369445912,-2000.0,0.00018116,2]
[399456533,1766369445921,-2000.0,0.00018116,2]
[399456534,1766369445930,-2000.0,0.00018116,2]
[399456535,1766369445940,-2000.0,0.00018116,2]
[399456536,1766369445949,-2000.0,0.00018116,2]
[399456537,1766369445960,-501.06407391,0.00018294,2]
[399456538,1766369445970,-300.0,0.00018355,2]
[399456539,1766369445980,-300.0,0.00018355,2]
[399456541,1766369445991,-300.0,0.00018355,2]
[399456542,1766369446005,-69733.8,0.00018356,2]
[399456543,1766369446016,-2500.0,0.00018664,2]
[399456544,1766369446028,-2500.0,0.00018664,2]
[399456545,1766369446038,-1275.24676858,0.00018664,2]
[399456546,1766369446048,-2500.0,0.00018664,2]
[399456547,1766369446058,-1562.97453287,0.00018664,2]
[399456548,1766369446067,-2500.0,0.00018664,2]
[399456549,1766369446078,-1501.85164738,0.00018664,2]
[399456550,1766369446087,-376.92050225,0.00018664,2]
[399456551,1766369446096,-1465.69163405,0.00018664,2]
[399456552,1766369446106,-1000.0,0.0001876,2]
[399456553,1766369446115,-151.03,0.000188,2]
[399456554,1766369446124,-151.03,0.000188,2]
[399456555,1766369446133,-151.03,0.000188,2]
[399456556,1766369446144,-151.03,0.000188,2]
[399456557,1766369446157,-151.03,0.000188,2]
[399456558,1766369446166,-151.03,0.000188,2]
[399456559,1766369446175,-151.03,0.000188,2]
[399456560,1766369446185,-151.03,0.000188,2]
[399456561,1766369446195,-151.03,0.000188,2]
[399456562,1766369446205,-151.03,0.000188,2]
[399456563,1766369446215,-155.35376724,0.000189,2]
[399456564,1766369446227,-300.0,0.00018999,2]
[399456565,1766369446236,-300.0,0.00018999,2]
[399456566,1766369446246,-300.0,0.00018999,2]
[399456567,1766369446255,-5148.35542899,0.00019,2]
[399456568,1766369446266,-1050.68027988,0.00019,2]
[399456569,1766369446275,-1630.00561313,0.00019,2]
[399456570,1766369446284,-486.64088377,0.00019,2]
[399456571,1766369446294,-136466.33568209,0.00019,2]
[399456572,1766369446305,-300.0,0.00019,2]
[399456573,1766369446315,-1093.6,0.00019005,2]
[399456574,1766369446324,-356.84579956,0.0001901,7]
[399456575,1766369446334,-710.0,0.00019178,2]
[399456576,1766369446344,-20061.77,0.00019178,2]
[399456577,1766369446354,-150.0,0.00019178,2]
[399456578,1766369446363,-151.74006835,0.00019192,2]
[399456579,1766369446373,-2315.48,0.00019197,2]
[399456580,1766369446383,-2162.27138094,0.00019212,2]
[399456581,1766369446393,-1605.14543277,0.00019212,2]
[399456582,1766369446403,-3000.0,0.00019212,2]
[399456583,1766369446412,-444.30175321,0.00019212,2]
[399456584,1766369446422,-11599.82953462,0.00019249,2]
[399456585,1766369446431,-300.0,0.00019289,2]
[399456586,1766369446441,-300.0,0.00019289,2]
[399456587,1766369446451,-239848.7837139,0.0001929,2]
[399456588,1766369446460,-300.0,0.0001929,2]
[399456589,1766369446470,-1600.0,0.00019316,2]
[399456590,1766369446479,-1000.0,0.00019438,2]
[399456591,1766369446489,-4513.3449511,0.00019493,2]
[399456592,1766369446499,-13540.0348533,0.00019495,2]
[399456593,1766369446508,-318.89475228,0.00019663,2]
[399456595,1766369446518,-422.25194048,0.00019663,2]
[399456597,1766369446527,-502.0,0.00019699,2]
[399456599,1766369446536,-900.0,0.00019726,2]
[399456601,1766369446546,-250.0,0.00019726,2]
[399456603,1766369446555,-3500.0,0.0001976,2]
[399456604,1766369446564,-8428.98622975,0.0001995,15]
[399456606,1766369446574,-300.0,0.00019999,2]
[399456608,1766369446583,-300.0,0.00019999,2]
[399456611,1766369446593,-300.0,0.00019999,2]
[399456613,1766369446602,-10877.62322293,0.0002,2]
[399456615,1766369446611,-1527.86571511,0.0002,2]
[399456617,1766369446621,-1460.27568423,0.0002,5]
[399456619,1766369446629,-8267.47383065,0.0002,2]
[399456620,1766369446639,-415603.07211162,0.0002,5]
[399456623,1766369446650,-1000.29777434,0.0002,2]
[399456625,1766369446659,-8720.0,0.0002001,2]
[399456626,1766369446669,-1000.0,0.00020116,2]
[399456627,1766369446678,-1000.0,0.00020187,2]
[399456628,1766369446686,-483.94,0.00020248,2]
[399456629,1766369446695,-615.67631493,0.00020274,2]
[399456630,1766369446705,-350.0,0.00020274,2]
[399456631,1766369446715,-4000.0,0.00020308,2]
[399456632,1766369446726,-21441.69,0.00020548,2]
[399456633,1766369446737,-192.0,0.00020548,2]
[399456634,1766369446747,-4847.31,0.00020652,2]
[399456635,1766369446756,-2429.0,0.00020652,2]
[399456636,1766369446766,-6530.0,0.00020652,2]
[399456637,1766369446777,-22571.15008706,0.000207,2]
[399456638,1766369446789,-2000.0,0.000207,2]
[399456639,1766369446801,-1000.0,0.00020795,2]
[399456640,1766369446812,-450.0,0.00020822,2]
[399456641,1766369446823,-1276.44176676,0.00020856,2]
[399456642,1766369446832,-20000.0,0.00021,2]
[399456643,1766369446841,-160.0,0.00021,7]
[399456644,1766369446850,-350.0,0.00021,2]
[399456645,1766369446859,-1093.6,0.00021005,2]
[399456646,1766369446868,-3227.35,0.00021068,2]
[399456647,1766369446877,-377.0,0.00021214,2]
[399456648,1766369446887,-377.0,0.0002124,2]
[399456649,1766369446896,-1600.0,0.00021248,2]
[399456650,1766369446905,-377.0,0.00021354,2]
[399456651,1766369446915,-159.69985351,0.0002137,2]
[399456652,1766369446923,-3474.125,0.000214,2]
[399456653,1766369446934,-1326.4,0.000214,2]
[399456654,1766369446943,-614.537,0.000214,2]
[399456655,1766369446953,-1609.0,0.000214,2]
[399456656,1766369446962,-520.13,0.000214,2]
[399456657,1766369446971,-1267.218,0.000214,2]
[399456658,1766369446980,-377.0,0.00021573,2]
[399456659,1766369446989,-300.0,0.00021581,2]
[399456660,1766369446998,-239848.7837139,0.00021582,2]
[399456661,1766369447008,-153.202067,0.00021582,2]
[399456662,1766369447018,-151.0,0.00021582,2]
[399456663,1766369447030,-153.82996,0.00021582,2]
[399456664,1766369447039,-151.0,0.00021582,2]
[399456665,1766369447048,-166.779627,0.00021582,2]
[399456666,1766369447057,-166.779627,0.00021582,2]
[399456667,1766369447066,-166.779627,0.00021582,2]
[399456668,1766369447075,-166.779627,0.00021582,2]
[399456669,1766369447086,-151.0,0.00021582,2]
[399456670,1766369447099,-151.0,0.00021582,2]
[399456671,1766369447109,-151.0,0.00021582,2]
[399456672,1766369447119,-151.0,0.00021582,2]
[399456673,1766369447128,-151.0,0.00021584,2]
[399456674,1766369447138,-151.0,0.00021584,2]
[399456675,1766369447148,-151.0,0.00021584,2]
[399456676,1766369447158,-151.0,0.00021584,2]
[399456677,1766369447168,-151.0,0.00021584,2]
[399456678,1766369447177,-151.0,0.00021584,2]
[399456679,1766369447190,-345.868097,0.00021584,2]
[399456680,1766369447199,-345.868097,0.00021584,2]
[399456681,1766369447210,-345.868097,0.00021584,2]
[399456682,1766369447221,-345.868097,0.00021584,2]
[399456683,1766369447232,-377.0,0.00021608,2]
[399456684,1766369447241,-377.0,0.0002161,2]
[399456685,1766369447250,-377.0,0.00021698,2]
[399456686,1766369447260,-151.0,0.00021783,2]
[399456687,1766369447269,-156.587,0.00021783,2]
[399456688,1766369447279,-162.380719,0.00021783,2]
[399456689,1766369447288,-153.6660154,0.00021783,2]
[399456690,1766369447297,-200.0,0.00021783,2]
[399456691,1766369447307,-207.4,0.00021783,2]
[399456692,1766369447316,-215.0738,0.00021783,2]
[399456693,1766369447325,-223.0315306,0.00021783,2]
[399456694,1766369447335,-231.28369723,0.00021783,2]
[399456695,1766369447347,-239.84119403,0.00021783,2]
[399456696,1766369447356,-248.71531821,0.00021783,2]
[399456697,1766369447366,-257.91778498,0.00021783,2]
[399456698,1766369447375,-267.46074303,0.00021783,2]
[399456699,1766369447384,-151.0,0.00021783,2]
[399456700,1766369447394,-377.0,0.00021786,2]
[399456701,1766369447403,-377.0,0.00021909,2]
[399456702,1766369447413,-5000.0,0.00021918,2]
[399456703,1766369447422,-377.0,0.0002193,2]
[399456704,1766369447431,-4513.3449511,0.00021988,2]
[399456705,1766369447441,-13540.0348533,0.00021992,2]
[399456706,1766369447450,-1148.86,0.00022,7]
[399456707,1766369447460,-377.0,0.00022108,2]
[399456708,1766369447469,-377.0,0.00022116,2]
[399456709,1766369447478,-377.0,0.00022222,2]
[399456710,1766369447487,-377.0,0.0002225,2]
[399456711,1766369447496,-200.0,0.0002232,2]
[399456712,1766369447505,-377.0,0.00022332,2]
[399456713,1766369447514,-377.0,0.00022344,2]
[399456714,1766369447523,-377.0,0.00022387,2]
[399456715,1766369447532,-377.0,0.00022551,2]
[399456716,1766369447541,-377.0,0.0002258,2]
[399456717,1766369447550,-377.0,0.00022658,2]
[399456718,1766369447559,-377.0,0.00022838,2]
[399456719,1766369447569,-377.0,0.00022895,2]
[399456720,1766369447578,-377.0,0.00022918,2]
[399456721,1766369447588,-400.0,0.00023,2]
[399456722,1766369447597,-1093.6,0.00023004,2]
[399456723,1766369447606,-377.0,0.0002307,2]